bitfinex-derivatives/quotes_BTCF0:USTF0_20240923
["timestamp","ask_amount","ask_price","bid_price","bid_amount"]
[1727104952838,0.439687,63378.0,63377.0,0.080889]
[1727104953738,0.07806226,63382.0,63377.0,0.002]
[1727104953928,0.07806226,63387.0,63386.0,0.078877]
[1727104954128,0.43886226,63392.0,63391.0,0.078871]
[1727104954437,0.3608,63392.0,63391.0,0.078871]
[1727104956538,0.3608,63392.0,63391.0,0.079871]
[1727104956726,0.3608,63392.0,63391.0,0.080871]
[1727104958134,0.43967,63392.0,63391.0,0.002]
[1727104958832,0.43967,63392.0,63379.0,0.0485]
[1727104958833,0.51863299,63392.0,63379.0,0.0485]
[1727104959035,0.51863299,63392.0,63384.0,0.078879]
[1727104959036,0.07821227,63385.0,63384.0,0.078879]
[1727104959246,0.17273124,63388.0,63386.0,0.078877]
[1727104959422,0.02557346,63387.0,63386.0,0.078877]
[1727104960337,0.1983047,63388.0,63386.0,0.078877]
[1727104960634,0.02557346,63387.0,63386.0,0.078877]
[1727104961135,0.02557346,63387.0,63384.0,0.001]
[1727104961337,0.09382129,63385.0,63384.0,0.001]
[1727104961528,0.10445396,63385.0,63384.0,0.001]
[1727104961935,0.10445396,63385.0,63384.0,0.07888]
[1727104962622,0.10645396,63385.0,63384.0,0.07988]
[1727104962939,0.02757496,63385.0,63384.0,0.07988]
[1727104963838,0.02957496,63385.0,63384.0,0.08088]
[1727104964741,0.02957442,63385.0,63384.0,0.08088]
[1727104965943,0.004,63385.0,63384.0,0.08088]
[1727104973449,0.004,63385.0,63384.0,0.002]
[1727104973450,0.2384526,63385.0,63384.0,0.002]
[1727104975046,0.2868526,63385.0,63384.0,0.002]
[1727104975436,0.38067488,63385.0,63384.0,0.002]
[1727104976055,0.36573192,63385.0,63384.0,0.002]
[1727104976350,0.13,63377.0,63374.0,0.0037]
[1727104976551,0.0255762,63376.0,63369.0,0.399098]
[1727104976746,0.09391917,63377.0,63376.0,0.07889]
[1727104976942,0.11949622,63377.0,63376.0,0.07889]
[1727104977344,0.02557705,63377.0,63376.0,0.07889]
[1727104977538,0.05293827,63377.0,63376.0,1.74972]
[1727104977743,0.07834297,63381.0,63376.0,1.56416]
[1727104977945,0.07834297,63383.0,63380.0,0.13]
[1727104978251,0.07834297,63383.0,63382.0,0.648564]
[1727104978550,0.002,63385.0,63384.0,0.15776]
[1727104978752,0.42344042,63394.0,63392.0,0.078869]
[1727104978943,0.0523637,63393.0,63392.0,0.078869]
[1727104980143,0.0523637,63393.0,63392.0,0.079869]
[1727104980343,0.0523637,63393.0,63392.0,0.210869]
[1727104980344,0.0553637,63393.0,63392.0,0.210869]
[1727104980758,0.003,63393.0,63392.0,0.22835505]
[1727104981054,0.003,63393.0,63392.0,0.080869]
[1727104981244,0.081869,63393.0,63392.0,0.002]
[1727104981552,0.081869,63393.0,63392.0,0.08087]
[1727104981757,0.083869,63393.0,63392.0,0.08087]
[1727104982450,0.213869,63393.0,63392.0,0.002]
[1727104982649,0.292738,63393.0,63392.0,0.002]
[1727104982850,0.07887,63392.0,63386.0,0.078876]
[1727104983056,0.4908,63387.0,63386.0,0.078876]
[1727104983350,0.078872,63390.0,63382.0,0.37776564]
[1727104983554,0.07855057,63384.0,63383.0,0.078881]
[1727104983740,0.07855057,63385.0,63384.0,0.15776]
[1727104983943,0.07855057,63386.0,63385.0,0.157758]
[1727104984151,0.07855057,63387.0,63386.0,0.078877]
[1727104984747,0.07857019,63387.0,63385.0,0.078879]
[1727104984946,0.07857019,63388.0,63387.0,0.078876]
[1727104985359,0.07857019,63388.0,63387.0,0.157752]
[1727104986355,0.08257019,63388.0,63387.0,0.158752]
[1727104986557,0.08657019,63388.0,63387.0,0.159752]
[1727104987055,0.008,63388.0,63387.0,0.159752]
[1727104987255,0.0866166,63388.0,63387.0,0.159752]
[1727104987561,0.008,63388.0,63387.0,0.080876]
[1727104988450,0.08659038,63388.0,63387.0,0.080876]
[1727104988852,0.008,63388.0,63387.0,0.080876]
[1727104989049,0.008,63388.0,63387.0,0.159752]
[1727104989954,0.008,63388.0,63387.0,0.238628]
[1727104990362,0.008,63388.0,63387.0,0.76585981]
[1727104990363,0.006,63388.0,63387.0,0.76585981]
[1727104990545,0.006,63388.0,63387.0,0.76596438]
[1727104990750,0.006,63388.0,63387.0,0.70296196]
[1727104991062,0.006,63388.0,63387.0,0.74241396]
[1727104991267,0.006,63388.0,63387.0,0.74241364]
[1727104991557,0.07859038,63400.0,63399.0,0.078861]
[1727104991752,0.07859038,63400.0,63399.0,0.157722]
[1727104992549,0.07859038,63403.0,63402.0,0.157714]
[1727104992853,0.07859038,63403.0,63402.0,0.287714]
[1727104993055,0.07859038,63404.0,63403.0,0.078856]
[1727104993455,0.07859038,63405.0,63404.0,0.078855]
[1727104994762,0.07859038,63406.0,63405.0,0.078854]
[1727104995350,0.09624032,63411.0,63403.0,0.13]
[1727104995548,0.07851912,63407.0,63404.0,0.001]
[1727104995760,0.07851912,63408.0,63404.0,0.002]
[1727104995955,0.07851912,63410.0,63409.0,0.078849]
[1727104996357,0.07851912,63411.0,63410.0,0.078847]
[1727104996660,0.3608,63412.0,63411.0,0.078846]
[1727104997162,0.43931912,63412.0,63411.0,0.078846]
[1727104997369,0.3608,63412.0,63411.0,0.078846]
[1727104998867,0.3608,63412.0,63411.0,0.079846]
[1727104999353,0.3608,63412.0,63411.0,0.09671274]
[1727104999560,0.3608,63412.0,63411.0,0.09771274]
[1727105002958,0.3608,63412.0,63411.0,0.002]
[1727105003167,0.96392,63412.0,63404.0,0.078854]
[1727105003371,0.078857,63403.0,63401.0,0.078858]
[1727105003574,0.078857,63402.0,63401.0,0.078858]
[1727105004263,0.078859,63401.0,63400.0,0.078859]
[1727105004771,0.078859,63401.0,63396.0,0.00236581]
[1727105004772,0.078864,63397.0,63396.0,0.00236581]
[1727105004963,0.287728,63397.0,63389.0,0.3608]
[1727105005159,0.078872,63391.0,63390.0,0.078871]
[1727105005664,0.125872,63391.0,63390.0,0.078871]
[1727105006070,0.047,63391.0,63390.0,0.078871]
[1727105006570,0.047,63391.0,63390.0,0.079871]
[1727105006763,0.048,63391.0,63390.0,0.080871]
[1727105007075,0.001,63391.0,63390.0,0.080871]
[1727105007959,0.001,63391.0,63390.0,0.002]
[1727105008162,0.079871,63391.0,63390.0,0.002]
[1727105009873,0.001,63391.0,63390.0,0.080872]
[1727105010070,0.079871,63391.0,63390.0,0.080872]
[1727105014670,0.126971,63391.0,63390.0,0.080872]
[1727105015084,1.14691509,63391.0,63381.0,0.0037]
[1727105015265,1.14691509,63391.0,63379.0,0.078886]
[1727105015266,0.078888,63380.0,63379.0,0.078886]
[1727105015666,0.078891,63376.0,63375.0,0.07889]
[1727105017178,0.3608,63377.0,63375.0,0.07889]
[1727105017179,0.3608,63377.0,63376.0,0.07889]
[1727105018070,0.439689,63377.0,63376.0,0.07889]
[1727105018378,0.07889,63376.0,63375.0,0.002]
[1727105018568,0.20588,63376.0,63375.0,0.002]
[1727105018769,0.25208,63376.0,63375.0,0.002]
[1727105018964,0.17519,63376.0,63375.0,0.002]
[1727105019169,0.17519,63376.0,63375.0,0.001]
[1727105019369,0.17619,63376.0,63375.0,0.002]
[1727105019765,0.12999,63376.0,63375.0,0.080891]
[1727105019969,0.003,63376.0,63375.0,0.080891]
[1727105021083,0.003,63376.0,63375.0,0.002]
[1727105021084,0.16078,63376.0,63375.0,0.002]
[1727105021287,0.078898,63369.0,63368.0,0.3608]
[1727105022567,0.086898,63369.0,63368.0,0.3618]
[1727105022970,0.098898,63369.0,63368.0,0.3628]
[1727105023175,0.098898,63369.0,63368.0,0.0809]
[1727105026392,0.228898,63369.0,63368.0,0.002]
[1727105027380,0.228898,63369.0,63368.0,0.0809]
[1727105027381,0.098898,63369.0,63368.0,0.0809]
[1727105029576,0.02,63369.0,63368.0,0.0809]
[1727105030384,0.02,63369.0,63368.0,0.1598]
[1727105030586,0.02,63369.0,63368.0,1.23324]
[1727105030777,0.3608,63382.0,63371.0,0.078896]
[1727105030978,0.3608,63382.0,63380.0,0.078884]
[1727105031185,0.37769233,63382.0,63381.0,0.078884]
[1727105031486,0.00236733,63385.0,63382.0,0.078882]
[1727105031683,0.078881,63383.0,63382.0,0.078882]
[1727105033183,0.0983742,63385.0,63379.0,0.0172849]
[1727105033485,0.082883,63382.0,63381.0,0.078884]
[1727105033693,0.004,63382.0,63381.0,0.078884]
[1727105033987,0.009,63383.0,63382.0,0.079882]
[1727105034376,0.087881,63383.0,63382.0,0.079882]
[1727105034686,0.009,63383.0,63382.0,0.079882]
[1727105035272,0.004,63383.0,63382.0,0.079882]
[1727105035482,0.009,63383.0,63382.0,0.080882]
[1727105035685,0.005,63383.0,63382.0,0.079882]
[1727105036093,0.0194952,63385.0,63382.0,0.078882]
[1727105036387,0.083881,63383.0,63382.0,0.079882]
[1727105036580,0.083881,63383.0,63382.0,0.080882]
[1727105036581,0.087881,63383.0,63382.0,0.080882]
[1727105037673,0.085881,63383.0,63382.0,0.080882]
[1727105038390,0.085881,63383.0,63382.0,0.002]
[1727105038594,0.164762,63383.0,63382.0,0.002]
[1727105039275,0.716963,63383.0,63382.0,0.002]
[1727105039475,0.078896,63371.0,63370.0,0.082597]
[1727105039675,0.078896,63371.0,63370.0,0.078897]
[1727105039676,0.208896,63371.0,63370.0,0.078897]
[1727105040084,0.569692,63374.0,63373.0,0.078894]
[1727105040287,0.440492,63374.0,63373.0,0.078894]
[1727105040486,0.439692,63374.0,63373.0,0.078894]
[1727105042583,0.3608,63374.0,63373.0,0.078894]
[1727105042794,0.3678,63374.0,63373.0,0.079894]
[1727105042989,0.3738,63374.0,63373.0,0.080894]
[1727105043186,0.39050623,63374.0,63373.0,0.080894]
[1727105043995,0.39050623,63374.0,63373.0,0.159788]
[1727105043996,0.011,63374.0,63373.0,0.159788]
[1727105046991,0.011,63374.0,63373.0,0.09824526]
[1727105047197,0.011,63374.0,63373.0,0.17713926]
[1727105047794,0.0037,63385.0,63384.0,0.07888]
[1727105047999,0.0976,63394.0,63389.0,0.078874]
[1727105048000,0.07863124,63390.0,63389.0,0.078874]
[1727105048185,0.07863124,63392.0,63391.0,0.078871]
[1727105048385,0.01673523,63396.0,63391.0,0.13]
[1727105048589,0.439661,63399.0,63395.0,0.13]
[1727105048792,0.439661,63399.0,63395.0,0.208866]
[1727105048986,0.078862,63398.0,63395.0,0.208866]
[1727105049395,0.078865,63396.0,63395.0,0.13]
[1727105050305,0.078865,63396.0,63395.0,0.131]
[1727105050498,0.078865,63396.0,63395.0,0.132]
[1727105050700,0.078865,63396.0,63395.0,0.210866]
[1727105051397,0.37758561,63399.0,63395.0,0.132]
[1727105052304,0.37758561,63399.0,63398.0,0.078862]
[1727105053206,0.45644661,63399.0,63398.0,0.078862]
[1727105054296,0.45644661,63399.0,63398.0,0.079862]
[1727105054701,0.45644661,63399.0,63398.0,0.080862]
[1727105055098,0.00236663,63404.0,63403.0,0.078856]
[1727105055609,0.0193946,63404.0,63400.0,0.07886]
[1727105055903,0.07886,63401.0,63400.0,0.07886]
[1727105056494,0.078864,63398.0,63397.0,0.078863]
[1727105058111,0.078864,63398.0,63397.0,0.080863]
[1727105058602,0.078864,63398.0,63397.0,0.002]
[1727105059206,0.078864,63398.0,63397.0,0.080864]
[1727105059409,0.287728,63398.0,63397.0,0.002]
[1727105060695,0.078864,63398.0,63397.0,0.080864]
[1727105061801,0.09609245,63398.0,63397.0,0.080864]
[1727105062301,0.079861,63400.0,63399.0,0.078861]
[1727105062496,0.001,63400.0,63399.0,0.078861]
[1727105063603,0.001,63400.0,63399.0,0.080861]
[1727105064107,0.07986,63400.0,63399.0,0.080861]
[1727105064411,0.001,63400.0,63399.0,0.080861]
[1727105065499,0.001,63400.0,63399.0,0.441661]
[1727105067008,0.001,63400.0,63399.0,0.488361]
[1727105068410,0.001,63400.0,63399.0,0.567222]
[1727105069608,0.001,63400.0,63399.0,0.646083]
[1727105070101,0.001,63400.0,63399.0,1.719283]
[1727105070305,0.001,63400.0,63399.0,1.119283]
[1727105070616,0.0037,63411.0,63410.0,0.078847]
[1727105070911,0.07863124,63419.0,63410.0,0.569647]
[1727105071101,0.440433,63422.0,63419.0,0.078836]
[1727105071297,0.439633,63422.0,63419.0,0.078836]
[1727105071699,0.078834,63421.0,63419.0,0.078836]
[1727105071911,0.078834,63421.0,63420.0,0.078835]
[1727105072916,0.37798487,63422.0,63421.0,0.078834]
[1727105073213,0.01718487,63422.0,63421.0,0.078834]
[1727105073395,0.096,63424.0,63420.0,0.001]
[1727105073596,0.17483,63424.0,63423.0,0.078831]
[1727105073799,0.19176755,63424.0,63423.0,0.078831]
[1727105074414,0.11293755,63424.0,63421.0,0.002]
[1727105074610,0.01693755,63424.0,63423.0,0.078831]
[1727105074906,0.01971285,63428.0,63427.0,0.078826]
[1727105075116,0.01971285,63428.0,63427.0,0.208826]
[1727105075296,0.00236594,63428.0,63427.0,0.208826]
[1727105075497,0.14496608,63437.0,63427.0,0.208826]
[1727105075498,0.08233124,63437.0,63427.0,1.203]
[1727105075808,0.01662999,63437.0,63436.0,0.13]
[1727105076108,0.078809,63441.0,63437.0,0.078814]
[1727105076706,0.07881,63440.0,63437.0,0.078814]
[1727105077017,0.3608,63439.0,63436.0,0.001]
[1727105077199,0.078825,63429.0,63427.0,0.0037]
[1727105077512,0.078825,63429.0,63422.0,0.078832]
[1727105077513,0.172126,63428.0,63422.0,0.078832]
[1727105078008,0.172126,63428.0,63421.0,0.37771304]
[1727105078009,0.078827,63427.0,63421.0,0.45654704]
[1727105078213,0.078827,63427.0,63421.0,0.37771304]
[1727105079118,0.078827,63427.0,63424.0,0.078829]
[1727105079808,0.078828,63426.0,63425.0,0.078829]
[1727105080309,0.1105677,63428.0,63427.0,0.078826]
[1727105081712,0.1893927,63428.0,63427.0,0.078826]
[1727105082214,0.1105677,63428.0,63427.0,0.078826]
[1727105082914,0.0642677,63428.0,63427.0,0.079826]
[1727105083104,0.36172,63429.0,63428.0,0.078825]
[1727105083301,0.07863124,63433.0,63431.0,0.078821]
[1727105083502,0.12443124,63434.0,63433.0,0.078819]
[1727105083703,0.06296171,63434.0,63433.0,0.078819]
[1727105084611,0.01716171,63434.0,63433.0,0.078819]
[1727105084812,0.0466,63436.0,63435.0,0.078816]
[1727105085012,0.07863124,63437.0,63436.0,0.078815]
[1727105085211,0.00203124,63437.0,63436.0,0.078815]
[1727105085413,0.0189853,63437.0,63436.0,0.078815]
[1727105085613,0.00203124,63437.0,63436.0,0.078815]
[1727105086009,0.0959,63443.0,63433.0,0.002]
[1727105086211,0.570408,63442.0,63438.0,0.078813]
[1727105086421,0.07881,63441.0,63438.0,0.078813]
[1727105086622,0.4916,63442.0,63438.0,0.078813]
[1727105087127,0.439611,63439.0,63438.0,0.078813]
[1727105087422,0.45692317,63439.0,63438.0,0.078813]
[1727105087622,0.45692317,63439.0,63438.0,0.079813]
[1727105088123,0.45692317,63439.0,63438.0,0.080813]
[1727105088325,0.37811217,63439.0,63438.0,0.080813]
[1727105089730,0.45692317,63439.0,63438.0,0.080813]
[1727105090717,0.45692317,63439.0,63438.0,0.002]
[1727105093634,0.45692317,63439.0,63438.0,0.080813]
[1727105095733,0.45692317,63439.0,63438.0,0.002]
[1727105096334,0.48247918,63439.0,63438.0,0.002]
[1727105097119,0.56129018,63439.0,63438.0,0.002]
[1727105098937,1.57081426,63439.0,63427.0,0.078825]
[1727105099236,0.208829,63428.0,63427.0,0.078825]
[1727105099461,0.13,63431.0,63430.0,0.078823]
[1727105099628,0.078822,63431.0,63430.0,0.078823]
[1727105100430,0.3608,63432.0,63431.0,0.078821]
[1727105100634,0.02555625,63432.0,63431.0,0.287642]
[1727105100826,0.09441469,63435.0,63431.0,0.287642]
[1727105100827,0.09441469,63435.0,63434.0,0.078818]
[1727105101132,0.02555518,63435.0,63434.0,0.078818]
[1727105101339,0.02555518,63435.0,63431.0,0.208821]
[1727105101340,0.0255542,63435.0,63431.0,0.208821]
[1727105101631,0.09443164,63433.0,63431.0,0.208821]
[1727105101824,0.11998584,63433.0,63432.0,0.07882]
[1727105102229,0.14659963,63438.0,63437.0,0.078814]
[1727105102427,0.07772081,63438.0,63437.0,0.208814]
[1727105103433,0.07772081,63438.0,63437.0,0.287628]
[1727105103825,0.05216799,63438.0,63437.0,0.287628]
[1727105104022,0.05416799,63438.0,63437.0,0.288628]
[1727105104234,0.05416799,63438.0,63437.0,0.209814]
[1727105104824,0.08071885,63438.0,63437.0,0.210814]
[1727105105837,0.48806788,63448.0,63447.0,0.078801]
[1727105105838,0.3786785,63448.0,63447.0,0.078801]
[1727105106143,0.38635068,63448.0,63447.0,0.208801]
[1727105106336,0.38634852,63448.0,63447.0,0.208801]
[1727105107026,0.38634852,63448.0,63447.0,0.078801]
[1727105107437,0.3618,63448.0,63447.0,0.079801]
[1727105107624,0.3618,63448.0,63447.0,0.080801]
[1727105107833,0.3618,63448.0,63447.0,0.002]
[1727105108140,0.4406,63448.0,63447.0,0.002]
[1727105108436,0.4406,63448.0,63447.0,0.080801]
[1727105108437,0.3618,63448.0,63447.0,0.080801]
[1727105109146,0.3608,63448.0,63447.0,0.079801]
[1727105109332,0.3608,63448.0,63447.0,0.080801]
[1727105111344,0.0037,63459.0,63455.0,0.078791]
[1727105111527,0.078787,63459.0,63456.0,0.07879]
[1727105111734,0.01674532,63459.0,63457.0,0.078788]
[1727105112041,0.078788,63459.0,63457.0,0.078788]
[1727105112239,0.078788,63459.0,63458.0,0.078788]
[1727105112740,0.4072,63462.0,63460.0,0.078785]
[1727105112937,0.02554612,63461.0,63460.0,0.078785]
[1727105113142,0.06347263,63462.0,63461.0,0.078784]
[1727105113733,0.14225563,63462.0,63461.0,0.078784]
[1727105114647,0.14225563,63462.0,63461.0,0.079784]
[1727105115647,0.14225563,63462.0,63461.0,0.080784]
[1727105115835,0.50305563,63462.0,63461.0,0.080784]
[1727105116039,0.50305563,63462.0,63461.0,0.002]
[1727105116849,0.485983,63462.0,63461.0,0.002]
[1727105117148,0.485983,63462.0,63461.0,0.080784]
[1727105117149,0.41528379,63462.0,63461.0,0.080784]
[1727105118944,0.01739256,63467.0,63461.0,0.47472]
[1727105119241,0.3616,63469.0,63462.0,0.13]
[1727105119242,0.3608,63469.0,63462.0,0.13]
[1727105119559,0.157566,63462.0,63461.0,0.001]
[1727105119852,0.13,63459.0,63450.0,0.0037]
[1727105120039,0.13,63459.0,63448.0,0.0476]
[1727105120040,0.078788,63458.0,63449.0,0.3608]
[1727105120237,0.0457,63457.0,63456.0,0.07879]
[1727105120436,0.0457,63457.0,63452.0,0.078795]
[1727105120651,0.078793,63454.0,63453.0,0.078793]
[1727105120848,0.124489,63457.0,63456.0,0.07879]
[1727105121150,0.0008,63463.0,63462.0,0.078783]
[1727105121447,0.0457,63468.0,63467.0,0.078777]
[1727105121653,0.0457,63468.0,63467.0,0.208777]
[1727105122048,0.01741813,63469.0,63467.0,0.208777]
[1727105122251,0.0037,63479.0,63467.0,0.13]
[1727105122453,0.0037,63483.0,63475.0,0.7216]
[1727105122637,0.0457,63481.0,63471.0,0.4908]
[1727105122842,0.0457,63481.0,63478.0,0.078763]
[1727105123045,0.45742666,63483.0,63478.0,0.078763]
[1727105123249,0.0037,63491.0,63490.0,0.078748]
[1727105123551,0.01728099,63496.0,63490.0,0.078748]
[1727105123754,0.3653,63506.0,63496.0,0.078741]
[1727105123942,0.3653,63506.0,63499.0,0.078736]
[1727105123943,0.3608,63506.0,63499.0,0.078736]
[1727105124252,0.3608,63506.0,63495.0,0.00116]
[1727105124253,0.3608,63500.0,63495.0,0.00116]
[1727105124444,0.3608,63506.0,63497.0,0.13]
[1727105124445,0.37807247,63506.0,63497.0,0.13]
[1727105124965,0.0037,63512.0,63502.0,0.13]
[1727105125145,0.001,63506.0,63504.0,0.07873]
[1727105125447,0.001,63506.0,63502.0,0.13]
[1727105125650,0.0170441,63511.0,63510.0,0.078723]
[1727105125845,0.3608,63517.0,63510.0,0.078723]
[1727105126352,0.3608,63517.0,63507.0,0.13]
[1727105126856,0.3608,63510.0,63504.0,0.001]
[1727105127044,0.13,63508.0,63501.0,0.3608]
[1727105127551,0.13,63508.0,63504.0,0.07973]
[1727105127552,0.001,63506.0,63504.0,0.07973]
[1727105128052,0.001,63508.0,63501.0,0.001]
[1727105128352,0.001,63508.0,63506.0,0.078728]
[1727105128552,0.001,63508.0,63506.0,0.208728]
[1727105128749,0.3645,63517.0,63516.0,0.078716]
[1727105129055,0.3608,63517.0,63516.0,0.078716]
[1727105129251,0.3776415,63517.0,63511.0,0.078722]
[1727105129459,0.0168415,63517.0,63511.0,0.078721]
[1727105129643,0.3608,63513.0,63512.0,0.078721]
[1727105129852,0.83316,63513.0,63504.0,0.001]
[1727105130060,0.3608,63505.0,63504.0,0.001]
[1727105130255,0.4908,63505.0,63501.0,0.001]
[1727105130444,0.078733,63502.0,63501.0,0.001]
[1727105130652,0.0473,63504.0,63501.0,0.001]
[1727105131148,0.0473,63504.0,63496.0,0.13]
[1727105131748,0.0483,63504.0,63501.0,0.001]
[1727105132154,0.208733,63502.0,63501.0,0.001]
[1727105132460,0.7216,63505.0,63504.0,0.078731]
[1727105132660,0.078702,63528.0,63516.0,0.078716]
[1727105132661,0.0037,63517.0,63516.0,0.078716]
[1727105132862,0.3608,63528.0,63523.0,0.078707]
[1727105132863,0.0461,63527.0,63523.0,0.078707]
[1727105133152,0.0461,63527.0,63516.0,0.13]
[1727105133153,0.0461,63527.0,63516.0,0.4908]
[1727105133459,0.0461,63527.0,63524.0,0.078706]
[1727105133851,0.47224,63526.0,63524.0,0.078706]
[1727105134359,0.0461,63527.0,63524.0,0.078706]
[1727105134360,0.47224,63525.0,63524.0,0.078706]
[1727105134560,0.47224,63526.0,63525.0,0.078705]
[1727105134759,0.0461,63527.0,63526.0,0.078703]
[1727105135244,1.11834,63527.0,63524.0,0.001]
[1727105135448,0.439505,63525.0,63524.0,0.001]
[1727105135648,0.3608,63525.0,63518.0,0.078713]
[1727105135855,0.47312,63526.0,63518.0,0.078713]
[1727105135856,0.3608,63519.0,63518.0,0.078713]
[1727105136847,0.078707,63524.0,63520.0,0.078711]
[1727105137151,0.3608,63525.0,63521.0,0.078709]
[1727105137152,0.078708,63523.0,63521.0,0.078709]
[1727105137551,0.3608,63525.0,63522.0,0.078708]
[1727105137751,0.078706,63524.0,63523.0,0.078707]
[1727105138157,0.078711,63520.0,63518.0,0.001]
[1727105138352,0.3608,63525.0,63518.0,0.001]
[1727105138547,0.3608,63525.0,63523.0,0.078706]
[1727105138855,0.3608,63525.0,63524.0,0.078706]
[1727105139255,0.83304,63525.0,63523.0,0.001]
[1727105139458,0.078706,63524.0,63523.0,0.001]
[1727105139978,0.078706,63524.0,63523.0,0.079707]
[1727105140959,0.078706,63524.0,63523.0,0.080707]
[1727105141460,0.078706,63524.0,63523.0,0.079707]
[1727105141661,0.078706,63524.0,63523.0,0.080707]
[1727105142762,0.078706,63524.0,63523.0,0.002]
[1727105143957,0.3608,63540.0,63527.0,0.078702]
[1727105144157,0.0452,63531.0,63530.0,0.157398]
[1727105144866,0.0452,63531.0,63530.0,0.078699]
[1727105145066,0.3608,63540.0,63531.0,0.078697]
[1727105145372,0.0054,63542.0,63541.0,0.078685]
[1727105145564,0.3608,63550.0,63541.0,0.3608]
[1727105145565,0.0054,63543.0,63541.0,0.3608]
[1727105145760,0.0054,63549.0,63542.0,0.268684]
[1727105145967,0.0054,63549.0,63548.0,0.268676]
[1727105147070,0.0054,63549.0,63548.0,0.269676]
[1727105147760,0.0054,63549.0,63548.0,0.630476]
[1727105147960,0.0037,63561.0,63553.0,0.078669]
[1727105148160,0.10938938,63588.0,63560.0,0.3608]
[1727105148161,0.078646,63573.0,63560.0,0.3608]
[1727105148370,0.5508,63567.0,63550.0,0.19]
[1727105148757,0.3608,63561.0,63550.0,0.19]
[1727105148967,0.078662,63560.0,63553.0,0.07867]
[1727105149162,0.0452,63560.0,63555.0,0.19]
[1727105149470,0.0452,63560.0,63559.0,0.19]
[1727105150059,0.3608,63567.0,63559.0,0.19]
[1727105150265,0.3608,63567.0,63556.0,0.3608]
[1727105150266,0.078641,63577.0,63568.0,0.078651]
[1727105150466,0.078641,63577.0,63573.0,0.19]
[1727105150768,0.0467,63576.0,63573.0,0.19]
[1727105150970,0.125342,63576.0,63573.0,0.19]
[1727105151269,0.0467,63576.0,63574.0,0.078644]
[1727105151662,0.4075,63576.0,63574.0,0.078644]
[1727105151865,0.4075,63576.0,63573.0,0.19]
[1727105151866,0.4075,63576.0,63575.0,0.078643]
[1727105152172,0.4075,63576.0,63574.0,0.078644]
[1727105152482,0.078643,63575.0,63570.0,0.3608]
[1727105152970,0.078643,63575.0,63573.0,0.001]
[1727105153173,0.078643,63575.0,63573.0,0.079645]
[1727105153375,0.078644,63574.0,63573.0,0.001]
[1727105153674,0.078646,63573.0,63570.0,0.002]
[1727105153878,0.4075,63576.0,63574.0,0.078644]
[1727105154081,0.4075,63576.0,63570.0,0.002]
[1727105154374,0.4075,63576.0,63565.0,0.078655]
[1727105154375,0.19,63573.0,63565.0,0.078655]
[1727105154582,0.3608,63566.0,63565.0,0.078655]
[1727105154769,0.439454,63566.0,63565.0,0.078655]
[1727105155074,0.3608,63566.0,63565.0,0.078655]
[1727105155969,0.01667824,63572.0,63562.0,0.19]
[1727105156168,0.078643,63575.0,63567.0,0.19]
[1727105156479,0.078643,63575.0,63571.0,0.13]
[1727105156679,0.078643,63575.0,63574.0,0.078644]
[1727105157090,0.4075,63576.0,63575.0,0.078643]
[1727105158580,0.42435179,63576.0,63575.0,0.078643]
[1727105158881,0.078643,63575.0,63574.0,0.001]
[1727105159590,0.157302,63568.0,63567.0,0.001]
[1727105159877,0.518102,63568.0,63567.0,0.001]
[1727105160083,0.078656,63564.0,63563.0,0.078657]
[1727105160284,0.078661,63561.0,63559.0,0.078662]
[1727105160509,0.0492,63560.0,63558.0,0.13]
[1727105161167,0.0492,63560.0,63555.0,0.078666]
[1727105161168,0.078668,63556.0,63555.0,0.078666]
[1727105162168,0.078673,63552.0,63551.0,0.078672]
[1727105162377,0.078674,63550.0,63549.0,0.3608]
[1727105162984,0.078689,63538.0,63536.0,0.00236085]
[1727105163180,0.07869,63537.0,63536.0,0.00236085]
[1727105163379,0.3608,63539.0,63528.0,0.3608]
[1727105163685,0.3608,63532.0,63524.0,0.078706]
[1727105163872,0.3608,63532.0,63516.0,0.3202]
[1727105164075,0.078703,63527.0,63523.0,0.078707]
[1727105164488,0.3608,63525.0,63518.0,0.078713]
[1727105164790,0.3608,63525.0,63515.0,0.00236136]
[1727105164990,0.439505,63525.0,63524.0,0.001]
[1727105166379,0.078713,63519.0,63516.0,0.001]
[1727105166579,0.078713,63519.0,63518.0,0.001]
[1727105166982,0.3648,63525.0,63518.0,0.191]
[1727105167187,0.443505,63525.0,63522.0,0.078708]
[1727105167386,0.3628,63525.0,63523.0,0.078707]
[1727105167591,0.3628,63525.0,63524.0,0.001]
[1727105167592,0.441505,63525.0,63524.0,0.001]
[1727105167893,0.631505,63525.0,63524.0,0.001]
[1727105168092,0.441505,63525.0,63524.0,0.001]
[1727105168398,0.078712,63519.0,63518.0,0.001]
[1727105168592,0.439512,63519.0,63518.0,0.001]
[1727105170292,0.439512,63519.0,63507.0,0.56800727]
[1727105170494,0.439512,63519.0,63513.0,0.19]
[1727105171081,0.441512,63519.0,63518.0,0.001]
[1727105171480,0.446512,63519.0,63518.0,0.002]
[1727105172797,0.446512,63519.0,63518.0,0.001]
[1727105172995,0.078718,63514.0,63513.0,0.001]
[1727105173195,0.078718,63514.0,63497.0,0.36574]
[1727105173196,0.268718,63514.0,63497.0,0.0037]
[1727105173386,0.268718,63514.0,63494.0,0.3608]
[1727105173387,0.078732,63503.0,63501.0,0.078733]